Cogmind - Beta 13 @@@ ROGUE MODE // 2024.04.27 @ 16:26:54 Player: Occam Result: Destroyed by D-53 Grenadier with Mini Grenade Launcher Performance ------------- Evolutions (0) 0 Regions Visited (4) 800 Robots Destroyed (29) 145 Value Destroyed (530) 530 Prototype IDs (2) 40 Alien Tech Used (0) 0 Bonus (-13) -13 TOTAL SCORE: 1502 Bonus ------- Friendly Fire -13 Cogmind --------- Core Integrity 0/250 Matter 242/300 Energy 92/100 System Corruption 5% Temperature Warm (175) Movement Treading (320) Ox2 Location -9/Mines Parts ------- > --- POWER (1) -------- (None) > --- PROPULSION (2) --- Light Treads > --- UTILITY (2) ------ High-capacity Storage Unit Seismic Detector > --- WEAPON (2) ------- Heavy Flail > --- INVENTORY (20) --- Ion Engine Light Ion Engine Nuclear Core Light Nuclear Core Fission Core Light Treads Light Treads Light Treads Compact Wheel Compact Wheel Improved Heat Sink Large Matter Pod (150) Structural Scanner Seismic Detector Improved Light Armor Plating Hacking Suite Medium Laser Datajack Peak State ------------ > --- POWER ------------ Ion Engine > --- PROPULSION ------- Light Treads Armored Wheel > --- UTILITY ---------- High-capacity Storage Unit Seismic Detector > --- WEAPON ----------- Rocket Launcher Heavy Flail > --- INVENTORY -------- Ion Engine Light Ion Engine Nuclear Core Light Nuclear Core Fission Core Light Treads Light Treads Light Treads Light Treads Compact Wheel Compact Wheel Improved Heat Sink Large Matter Pod Structural Scanner Seismic Detector Improved Light Armor Plating Hacking Suite Medium Laser Grenade Launcher Datajack [Rating: 14] Favorites ----------- Power Ion Engine Engine Ion Engine Propulsion Light Treads Treads Light Treads Leg Aluminum Leg Wheel Wheel Utility Structural Scanner Device Structural Scanner Storage Large Storage Unit Weapon Medium Laser Energy Gun Medium Laser Ballistic Gun Light Assault Rifle Launcher Rocket Launcher Impact Weapon Heavy Flail Special Melee Weapon Datajack Build | -11 -10 -10 -10 -9 ------- Run | Yrd Mat Min Exi Min Slots Evolved . | . . . . . Power . | . . . . . Propulsion . | . . . . . Utility . | . . . . . Weapon . | . . . . . Parts Attached 28 | 2 11 6 . 9 Power 4 | . 2 2 . . Engine 4 | . 2 2 . . Core . | . . . . . Reactor . | . . . . . Propulsion 10 | . 4 3 . 3 Treads 6 | . 4 . . 2 Leg . | . . . . . Wheel 4 | . . 3 . 1 Hover . | . . . . . Flight . | . . . . . Utility 5 | 1 2 1 . 1 Device 3 | 1 1 . . 1 Storage 2 | . 1 1 . . Processor . | . . . . . Hackware . | . . . . . Protection . | . . . . . Artifact . | . . . . . Weapon 9 | 1 3 . . 5 Energy Gun 2 | . 1 . . 1 Energy Cannon . | . . . . . Ballistic Gun 2 | 1 1 . . . Ballistic Cannon . | . . . . . Launcher 3 | . . . . 3 Special Weapon . | . . . . . Impact Weapon 1 | . . . . 1 Slashing Weapon . | . . . . . Piercing Weapon . | . . . . . Special Melee Weapon 1 | . 1 . . . Unidentified Prototypes . | . . . . . Parts Lost 7 | . . . . 7 Power 1 | . . . . 1 Propulsion 2 | . . . . 2 Utility 1 | . . . . 1 Weapon 3 | . . . . 3 Highest Loss Streak 5 | . . . . 5 To Critical Strikes . | . . . . . Average Slot Usage (%) 99 | . 99 100 100 95 Engine 13 | . 14 14 14 13 Treads 21 | . 26 16 14 14 Wheel 5 | . . 11 14 13 Device 13 | . 14 14 14 10 Storage 14 | . 14 14 14 14 Energy Gun 13 | . 13 14 14 8 Ballistic Gun 11 | . 11 14 14 6 Special Melee Weapon 1 | . 2 . . . Naked Turns . | . . . . . Heaviest Build 53 | 14 29 49 49 53 Greatest Support 40 | 20 40 40 10 12 Greatest Overweight (x) 5 | . . 4 4 5 Average Overweight (x) 1 | . . 3 4 4 Largest Inventory Capacity 20 | 8 15 20 20 20 Average Capacity 16 | 8 14 19 20 20 Most Carried 20 | 7 15 18 20 20 Average Carried 15 | 5 13 17 19 19 Final Capacity 20 | 8 15 20 20 20 Final Carried 20 | 6 15 18 20 18 Class Distribution -------------------- 100% | Mutant Dominant Class ---------------- Mutant | -10/Materials Mutant | -10/Mines Mutant | -10/Exiles Mutant | -9/Mines Resources | -11 -10 -10 -10 -9 ----------- Run | Yrd Mat Min Exi Min Matter Collected 785 | 234 325 84 1 141 Remotely . | . . . . . Salvage Created 1055 | 149 587 168 . 151 Parts 62 | 10 41 8 . 3 Haulers Intercepted 2 | . 2 . . . Recyclers Shooed 3 | 1 2 . . . Parts Field Recycled . | . . . . . Retrieved Matter . | . . . . . Parts Self-Destructed . | . . . . . Prevented . | . . . . . Kills | -11 -10 -10 -10 -9 ------- Run | Yrd Mat Min Exi Min Combat Hostiles Destroyed 19 | . 8 4 . 7 Melee 1 | . . . . 1 Guns 14 | . 8 4 . 2 AOE 4 | . . . . 4 Classes Destroyed 9 | 2 6 . . 1 Worker 1 | . 1 . . . Builder 2 | . 2 . . . Tunneler 3 | 3 . . . . Hauler 2 | . 2 . . . Recycler 3 | 1 2 . . . Watcher 3 | . 3 . . . Swarmer 6 | . 6 . . . Grunt 9 | . 2 4 . 3 Assembled 4 | . . . . 4 Best Kill Streak 4 | 3 4 2 . 3 Combat Bots Only 3 | . 3 2 . 3 Max Kills in Single Turn 2 | 1 2 1 . 2 Gunslinging . | . . . . . Exploded 2 | . . . . 2 Melee 1 | . . . . 1 Uniques/NPCs Destroyed . | . . . . . Combat | -11 -10 -10 -10 -9 -------- Run | Yrd Mat Min Exi Min Hostile Shots Fired 95 | . 40 16 . 39 Missed 22 | . 8 6 . 8 Damage Taken 1330 | . 282 148 . 900 Core 258 | . 30 10 . 218 Absorbed by Shields . | . . . . . Regen/Repaired (Parts) 35 | . 35 . . . Core Remaining (%) 100 | 100 . . . . Volleys Fired 130 | 14 76 15 . 25 Largest 2 | 2 2 2 . 2 Hottest 70 | 70 70 70 . 70 Shots Fired 245 | 28 149 30 . 38 Gun 233 | 28 149 30 . 26 Cannon . | . . . . . Launcher 12 | . . . . 12 Special . | . . . . . Kinetic 117 | 14 75 15 . 13 Thermal 116 | 14 74 15 . 13 Explosive 8 | . . . . 8 Electromagnetic 4 | . . . . 4 Robot Hit Streak 10 | 6 10 9 . 10 Robot Miss Streak 5 | 1 5 1 . 3 Penetration Max . | . . . . . Secondary Targets 1 | . 1 . . . Max Gunslinging Chain 1 | . 1 . . . Shots Hit Robots 154 | 20 85 23 . 26 Core Hits 62 | 6 30 10 . 16 Critical Kills . | . . . . . Critical Parts Destroyed 3 | 1 . . . 2 Critical Strikes 9 | 3 2 2 . 2 Burn 6 | 2 2 2 . . Destroy 2 | 1 . . . 1 Smash 1 | . . . . 1 Melee Attacks 4 | . 2 . . 2 Impact 2 | . . . . 2 Slashing . | . . . . . Piercing . | . . . . . Sneak Attacks 2 | . 2 . . . Combat Hostiles . | . . . . . Follow-up Attacks . | . . . . . Damage Inflicted 2021 | 191 923 258 . 649 Guns 1527 | 191 923 258 . 155 Cannons . | . . . . . Explosions 409 | . . . . 409 Melee 85 | . . . . 85 Ramming . | . . . . . Kinetic 600 | 91 374 79 . 56 Thermal 927 | 100 549 179 . 99 Explosive 273 | . . . . 273 Electromagnetic 136 | . . . . 136 Impact 85 | . . . . 85 Slashing . | . . . . . Piercing . | . . . . . Highest Corruption 5 | . . . . 5 Average Corruption 5 | . . . . 5 Corruption Purged . | . . . . . Corruption Blocked . | . . . . . Effects 8 | . . . . 8 Message Errors 1 | . . . . 1 Matter Fused 3 | . . . . 3 Heat Flow Errors 1 | . . . . 1 Energy Discharges 1 | . . . . 1 Data Loss (minor) 1 | . . . . 1 Data Loss (major) 1 | . . . . 1 Overload Shots . | . . . . . Overflow Damage 101 | . . . . 101 Projectiles . | . . . . . Explosions 16 | . . . . 16 Melee 85 | . . . . 85 Knockbacks . | . . . . . Impact . | . . . . . Kinetic . | . . . . . Secondary . | . . . . . Self-Inflicted Damage 81 | . . . . 81 Shots 4 | . . . . 4 Rammed . | . . . . . Targets Rammed . | . . . . . Kicked . | . . . . . Crushed . | . . . . . Highest Temperature 203 | 120 80 203 . 195 Average Temperature 40 | 45 25 71 . 61 Received Heat Transfer 180 | . 51 120 . 9 Siege Activations . | . . . . . Robots Corrupted . | . . . . . Combat Hostiles . | . . . . . Parts Fried . | . . . . . Impact Corruptions 2 | . . . . 2 Robots Melted . | . . . . . Combat Hostiles . | . . . . . Parts Melted . | . . . . . Heat Transferred 3182 | 444 1776 666 . 296 Parts Sabotaged . | . . . . . Parts Stolen . | . . . . . Parts Stripped . | . . . . . Power Chain Reactions . | . . . . . Alert | -11 -10 -10 -10 -9 ------- Run | Yrd Mat Min Exi Min Peak Influence 134 | 20 134 100 . 123 Initial 13 | . 13 . . . Average 30 | 9 26 47 . 33 Maximum Alert Level . | . . . . . Low Security (%) 100 | 100 100 100 . 100 Level 1 . | . . . . . Level 2 . | . . . . . Level 3 . | . . . . . Level 4 . | . . . . . Level 5 . | . . . . . High Security . | . . . . . Max Security . | . . . . . Squads Dispatched 1 | . . 1 . . Investigation 1 | . . 1 . . Extermination . | . . . . . Reinforcement . | . . . . . Assault . | . . . . . Garrison . | . . . . . Intercept . | . . . . . Searches Triggered . | . . . . . Construction Impeded . | . . . . . Haulers Reinforced . | . . . . . Active Scanning Responses . | . . . . . Cargo Convoy Interrupts . | . . . . . Stealth | -11 -10 -10 -10 -9 --------- Run | Yrd Mat Min Exi Min Distress Signals 1 | . 1 . . . Communications Jammed . | . . . . . Distress Signals . | . . . . . Times Spotted 33 | . 20 4 . 9 Peak Tracking Total 5 | . 5 2 . 3 Tactical Retreats 1 | . 1 . . . Traps | -11 -10 -10 -10 -9 ------- Run | Yrd Mat Min Exi Min Traps Triggered . | . . . . . Indirectly . | . . . . . Trap Hack Attempts 22 | . 22 . . . Triggered . | . . . . . Disarmed 4 | . 4 . . . Reprogrammed . | . . . . . Reused . | . . . . . Traps Extracted . | . . . . . Installed . | . . . . . Triggered . | . . . . . Machines | -11 -10 -10 -10 -9 ---------- Run | Yrd Mat Min Exi Min Machines Disabled 1 | . . . . 1 Max in Single Turn 1 | . . . . 1 Machines Repaired . | . . . . . Machines Dismantled . | . . . . . Machines Sabotaged . | . . . . . Overloaded Fab Kills . | . . . . . Hacking | -11 -10 -10 -10 -9 --------- Run | Yrd Mat Min Exi Min Machines Accessed 9 | . 7 1 1 . Terminals 6 | . 6 . . . Fabricators . | . . . . . Repair Stations 1 | . 1 . . . Recycling Units . | . . . . . Scanalyzers . | . . . . . Garrison Access . | . . . . . Total Hacks 28 | . 26 1 1 . Successful 15 | . 13 1 1 . Failed 12 | . 12 . . . Catastrophic . | . . . . . Database Lockouts 1 | . 1 . . . Manual 12 | . 12 . . . Terminals 24 | . 24 . . . Fabricators . | . . . . . Repair Stations 2 | . 2 . . . Recycling Units . | . . . . . Scanalyzers . | . . . . . Garrison Access . | . . . . . Terminal Hacks 9 | . 7 1 1 . Record 1 | . . . 1 . Robot Analysis 1 | . 1 . . . Prototype ID Bank 1 | . 1 . . . Open Door 1 | . . 1 . . Terminal Index 1 | . 1 . . . Alert Level 2 | . 2 . . . Locate Traps 1 | . 1 . . . Hauler Manifests 1 | . 1 . . . Fabricator Hacks . | . . . . . Repair Station Hacks 2 | . 2 . . . Scan Component 1 | . 1 . . . Repair 1 | . 1 . . . Recycling Unit Hacks . | . . . . . Scanalyzer . | . . . . . Garrison Access Hacks . | . . . . . Unauthorized Hacks 4 | . 4 . . . Terminals 4 | . 4 . . . Assimilate 1 | . 1 . . . Botnet 2 | . 2 . . . Operators 1 | . 1 . . . Fabricators . | . . . . . Repair Stations . | . . . . . Recycling Units . | . . . . . Scanalyzers . | . . . . . Garrison Access . | . . . . . Data Cores Recovered . | . . . . . Used . | . . . . . Hacking Detections 5 | . 5 . . . Full Trace Events . | . . . . . Feedback Events . | . . . . . Feedback Blocked . | . . . . . Robot Schematics Acquired . | . . . . . Robots Built . | . . . . . Authchips . | . . . . . Time . | . . . . . Total Robot Build Rating . | . . . . . Part Schematics Acquired . | . . . . . Parts Built . | . . . . . Authchips . | . . . . . Time . | . . . . . Total Part Build Rating . | . . . . . Parts Repaired 1 | . 1 . . . Time 26 | . 26 . . . Parts Recycled . | . . . . . Recycled Matter . | . . . . . Retrieved Matter . | . . . . . Retrieved Components . | . . . . . Parts Scanalyzed . | . . . . . Part Schematics Acquired . | . . . . . Parts Damaged . | . . . . . Bothacking | -11 -10 -10 -10 -9 ------------ Run | Yrd Mat Min Exi Min Used RIF Installer . | . . . . . Robots Hacked 1 | . 1 . . . Non-combat 1 | . 1 . . . Combat . | . . . . . Robot Hacks Applied 1 | . 1 . . . parse_system 1 | . 1 . . . Relay Couplers Released . | . . . . . Fabnet Peak Effective % . | . . . . . Robots Rewired . | . . . . . Allies Hacked . | . . . . . Hacks Repelled . | . . . . . Allies | -11 -10 -10 -10 -9 -------- Run | Yrd Mat Min Exi Min Total Allies 3 | . 1 2 . . Largest Group 2 | . 1 2 2 . Highest-Rated Group 51 | . 10 51 51 . Highest-Rated Ally 31 | . 10 31 31 . Total Orders . | . . . . . Ally Attacks . | . . . . . Total Damage . | . . . . . Kills . | . . . . . Allies Corrupted . | . . . . . Allies Melted . | . . . . . Intel | -11 -10 -10 -10 -9 ------- Run | Yrd Mat Min Exi Min Robot Analysis Total 1 | . 1 . . . Derelict Logs Recovered 1 | . . 1 . . Drone Launches . | . . . . . Drone Recoveries . | . . . . . Exploration | -11 -10 -10 -10 -9 ------------- Run | Yrd Mat Min Exi Min Turns Passed 3476 | 106 1977 555 445 393 Spaces Moved 1933 | 23 1070 337 317 186 Core . | . . . . . Treads 1034 | . 992 42 . . Legs 101 | 23 78 . . . Wheels 798 | . . 295 317 186 Hover . | . . . . . Flight . | . . . . . Fastest Speed 120 | 120 120 140 140 140 Average Speed 150 | 120 157 142 140 145 Slowest Speed 160 | 120 160 160 140 155 Overloaded Moves . | . . . . . Propulsion Burnouts . | . . . . . Robots Hopped . | . . . . . Cave-ins Triggered . | . . . . . Exploration Rate (%) 56 | 4 97 69 68 43 Regions Visited 4 Branch Regions 3 Pre-discovered Areas 1 | . . . 1 . Known Exits Taken . | . . . . . Unknown Exits Taken 4 | 1 1 1 1 . Scrap Searched 2 | . . 1 . 1 Spaces Dug . | . . . . . Terrain Destroyed 42 | . . . . 42 Melee . | . . . . . Projectile . | . . . . . AOE 42 | . . . . 42 Terrain Rammed . | . . . . . Walls Destroyed . | . . . . . Machines Disabled . | . . . . . Actions | -11 -10 -10 -10 -9 --------- Run | Yrd Mat Min Exi Min Total 2280 | 76 1233 384 318 269 Wait 126 | 35 32 18 . 41 Move 1929 | 22 1069 336 316 186 Hop . | . . . . . Pick Up 22 | 1 11 5 2 3 Fast Attach 4 | 1 2 . . 1 Attach 8 | 1 3 . . 4 Detach 4 | 1 3 . . . Swap 16 | . 6 6 . 4 Drop 15 | 1 7 4 . 3 Fire 130 | 14 76 15 . 25 Melee 4 | . 2 . . 2 Ram . | . . . . . Kick . | . . . . . Crush . | . . . . . Escape Stasis . | . . . . . Rewire . | . . . . . Trap 22 | . 22 . . . Miscellaneous . | . . . . . Route ------- -11/Scrapyard -10/Materials (discovered 6 exits: [*Mat x3] / *Min x2 / [Sub]) -10/Mines (discovered 2 exits: [*Mat] / *Exi) -10/Exiles -9/Mines History --------- Turn | Location | Event 15 | -11/Scrapyard | Discovered new exit (range 2) 107 | -11/Scrapyard | Entered Materials 138 | -10/Materials | Central database locked down 171 | -10/Materials | Discovered new exit (range 5) 315 | -10/Materials | Build established: Mutant 347 | -10/Materials | Discovered new exit (range 7) 374 | -10/Materials | Discovered new exit (range 7) 549 | -10/Materials | Discovered new exit (range 10) 979 | -10/Materials | Repaired Med. Laser 984 | -10/Materials | Discovered new exit (range 15) 1306 | -10/Materials | Discovered new exit (range 15) 2084 | -10/Materials | Entered Mines 2145 | -10/Mines | Learned 4 Materials zone layouts 2170 | -10/Mines | Met a Derelict shopkeep closing up shop 2373 | -10/Mines | Discovered new exit (range 4) 2392 | -10/Mines | Deemed a non-threat by the Exiles lab entrance 2392 | -10/Mines | Discovered new exit (range 6) 2639 | -10/Mines | Entered Exiles 2639 | -10/Exiles | Accompanied by 2 allies 2669 | -10/Exiles | Led the pair of lost Derelicts to a safe place 2676 | -10/Exiles | Met 8R-AWN 2720 | -10/Exiles | Met EX-HEX 2760 | -10/Exiles | Met EX-BIN 2844 | -10/Exiles | Learned location of Zion (-6) 2920 | -10/Exiles | Met EX-DEC 3067 | -10/Exiles | Discovered new exit (range 12) 3084 | -10/Exiles | Entered Mines 3132 | -9/Mines | Assembled infested the area 3292 | -9/Mines | Received a Rocket Launcher from a helpful Derelict 3471 | -9/Mines | Core integrity fell below 50% 3473 | -9/Mines | Core integrity fell below 20% 3477 | -9/Mines | Destroyed by D-53 Grenadier with Mini Grenade Launcher Last Messages --------------- 03363_ G-34 Mercenary destroyed. 03365_ PKMFMB 9|V PNIXBWN<:VU9=O8>IN%N5 EBSY#D% 03365_ G-47 Trooper destroyed. 03366_ T-07 Excavator is excavating. 03371_ Acquired 24 matter. 03373_ Acquired 12 matter. 03376_ T-07 Excavator is excavating. 03386_ The unstable cave ceiling collapses. 03396_ System corrupted: Component data lost. 03417_ System corrupted: Matter fused (-8). 03430_ K-01 Serf collects debris. 03430_ Acquired 8 matter. 03433_ K-01 Serf collects debris. 03464_ Ion Engine destroyed. 03467_ Rocket Launcher destroyed. 03468_ Arm. Wheel destroyed. 03471_ T-07 Excavator destroyed. 03474_ System corrupted: Heat flow error (+205). 03475_ Grenade Launcher destroyed. 03477_ Lgt. Treads destroyed. Map ----- +----------------------------------------------------+ | ????????????????????????????????????????????? | | ????????????????????????????????????????????? | | ????????????????????????????????????????????? | | ????????????????????????????????????????????? | | ????????????????????????????????????????????? | | ????????????????????????????????????????????? | | ????????????????????????????????????????????? | | ????????????????????????????????????????????? | | ????????????????????????????????????????????? | | ????????????????????????????????????????????? | | ????????????????????#???????????????????????? | | ??????????????????## #??????????????????????? | | ??????????????????# ??????????????????????? | | ??????????????????# #?????????????????????? | | ??????????????????# #?????????????????????? | | ?????????????????## ##????????????????????? | | ????????????????## ????????????????????? | | ????????????????# ????????????????????? | | ????????????????# #????????????????????? | | ????????????????# #????????????????????? | | ????????????????# #????????????????????? | | ???????????????## ###??????????????????? | | ???????????????# ##?????????????????? | | ???????????????# #??????????????#??? | | ???????????????# ##???????????? #??? | | ??????????????## @ #????####?? #??? | | ????????# ### ##### ## #??? | | ?????????# % d #???? | | ?????????# #???? | | ?????????## ##### d ##?? #???? | | ??????????#??????### ##### #???? | | ??????????????????# ## #????? | | ?????##???????????## ## ##????? | | ?????# ##??????????## # ## #?#??? | | ?????# ##???????????####### # #??? | | ?????# ##????????????????## ## ## | | ?????# #########?????????##< % | | ???#### #??????????## % | | ??## # #######]#??????????## # ### | | ?## # ###?????# #??????????#= ## ### #?? | | ?# = #??????#=#??????????#% ##?######## | | ?# * ##?????# #??????????# ###???## ### | | ?# % #?????#=####???????# ######## ## | | ?# ##????## ##??????# | | ?# * #????## ######## ######### | | ?# #????# = == #???????##### | | ?### ####### ############??????????## | | ???# ##????????????????????### | | ???############### #?????????????????????### | | ?????????????????####?????????????????????## | +----------------------------------------------------+ Best States ------------- Heat Dissipation 25 Energy Generation 10 Energy Capacity 250 Matter Stores 300 Matter Capacity 300 Sight Range 16 Terrain Scan Density 10 Evasion (%) 55 Recoil Reduction 2 Item Schematics ----------------- None Robot Schematics ------------------ None Fabricated ------------ Nothing Alien Tech Used ----------------- None Achievements -------------- None Challenges ------------ None Game ------ Seed SlugInsulatedScreen Manual? 0 Play Time 00:20:52 Cumulative 254.4 hours Start 2024.04.27 @ 16:05:57 End 2024.04.27 @ 16:26:54 Sessions 1 Manual Loads 0 Difficulty Rogue Special Mode None Game No. 162 Rogue 18 Adventurer 144 Explorer 0 Win Type - Total 4 Types 2/0/1/1/0/0/0/0/0 Lore% 63 Gallery% 74 Achievement% 62 Wizard Run 0 Options --------- Layout 0 ASCII 0 Keyboard 0 Movement Mouse Keybinds 0 Fullscreen 2 Font 20/SmallcapsGlow Map View 66x50 Zoom Use 0% Tactical HUD 1 Map Filters NONE Filters NONE Steam X RUN: afa88ee5-467d-4501-8c14-1bb284d7a4d3